[Event "Late-Titled-Tuesday-Blitz-December-26-2023"]
[Site "Chess.com"]
[Date "2023.12.26"]
[Round "2"]
[White "enriquetejedor"]
[Black "StellarChess"]
[Result "1-0"]
[WhiteElo "2760"]
[BlackElo "2523"]
[TimeControl "180+1"]
[EndTime "14:18:43 PST"]
[Termination "enriquetejedor won on time"]

1. e4 {[%clk 0:02:59]} 1... a6 {[%clk 0:03:00.9]} 2. d4 {[%clk 0:02:56.6]} 2...
c6 {[%clk 0:03:00.8]} 3. c4 {[%clk 0:02:55.6]} 3... d5 {[%clk 0:02:57.4]} 4. Nc3
{[%clk 0:02:49.4]} 4... dxe4 {[%clk 0:02:57.4]} 5. Nxe4 {[%clk 0:02:50.1]} 5...
Nf6 {[%clk 0:02:58.3]} 6. Nc3 {[%clk 0:02:49]} 6... e6 {[%clk 0:02:58]} 7. Nf3
{[%clk 0:02:49]} 7... c5 {[%clk 0:02:57.1]} 8. Be3 {[%clk 0:02:47]} 8... cxd4
{[%clk 0:02:56.2]} 9. Qxd4 {[%clk 0:02:39.6]} 9... Qxd4 {[%clk 0:02:55]} 10.
Nxd4 {[%clk 0:02:40.1]} 10... Bd7 {[%clk 0:02:54.7]} 11. O-O-O {[%clk
0:02:39.8]} 11... Nc6 {[%clk 0:02:55.2]} 12. Be2 {[%clk 0:02:39.5]} 12... Nxd4
{[%clk 0:02:53.8]} 13. Bxd4 {[%clk 0:02:39.2]} 13... Bc6 {[%clk 0:02:54.7]} 14.
f3 {[%clk 0:02:38.1]} 14... Be7 {[%clk 0:02:55.1]} 15. Rd2 {[%clk 0:02:37.7]}
15... O-O-O {[%clk 0:02:54.1]} 16. Rhd1 {[%clk 0:02:37.8]} 16... Rd7 {[%clk
0:02:51.2]} 17. b3 {[%clk 0:02:36.7]} 17... Rhd8 {[%clk 0:02:44.4]} 18. Kb2
{[%clk 0:02:35.8]} 18... h6 {[%clk 0:02:25.9]} 19. Bf1 {[%clk 0:02:26.7]} 19...
g5 {[%clk 0:02:25.1]} 20. Be3 {[%clk 0:02:25.9]} 20... Rxd2+ {[%clk 0:02:25]}
21. Rxd2 {[%clk 0:02:26.8]} 21... Rxd2+ {[%clk 0:02:24.8]} 22. Bxd2 {[%clk
0:02:27.7]} 22... Bd6 {[%clk 0:02:22.7]} 23. h3 {[%clk 0:02:26.9]} 23... Be5
{[%clk 0:02:22.2]} 24. Kc2 {[%clk 0:02:26.1]} 24... Nh5 {[%clk 0:02:18.4]} 25.
Bd3 {[%clk 0:02:20.1]} 25... Nf4 {[%clk 0:02:18.2]} 26. Bxf4 {[%clk 0:02:19.9]}
26... Bxf4 {[%clk 0:02:18.9]} 27. Be4 {[%clk 0:02:19.2]} 27... Bd7 {[%clk
0:02:15.7]} 28. Kd1 {[%clk 0:02:18.1]} 28... Kc7 {[%clk 0:02:15.6]} 29. Ke2
{[%clk 0:02:17]} 29... b6 {[%clk 0:02:11.6]} 30. Bc2 {[%clk 0:02:16.4]} 30...
Kd6 {[%clk 0:01:57.3]} 31. Ne4+ {[%clk 0:02:15.5]} 31... Ke5 {[%clk 0:01:56.4]}
32. g3 {[%clk 0:02:12.5]} 32... Bc1 {[%clk 0:01:55.2]} 33. Nf2 {[%clk
0:02:13.1]} 33... Kd4 {[%clk 0:01:50.4]} 34. Ng4 {[%clk 0:02:09.2]} 34... Kc3
{[%clk 0:01:35.1]} 35. Bd1 {[%clk 0:02:07.3]} 35... f5 {[%clk 0:01:33.4]} 36.
Nxh6 {[%clk 0:02:06.7]} 36... Kb2 {[%clk 0:01:34.1]} 37. a4 {[%clk 0:01:53.1]}
37... g4 {[%clk 0:01:27.6]} 38. Nxg4 {[%clk 0:01:52.7]} 38... fxg4 {[%clk
0:01:27.9]} 39. fxg4 {[%clk 0:01:50]} 39... e5 {[%clk 0:01:26.9]} 40. Kd3 {[%clk
0:01:45.3]} 40... Bc6 {[%clk 0:01:21.6]} 41. h4 {[%clk 0:01:41.5]} 41... e4+
{[%clk 0:01:15.4]} 42. Ke2 {[%clk 0:01:31.5]} 42... Kc3 {[%clk 0:01:08]} 43. g5
{[%clk 0:01:28.6]} 43... Be8 {[%clk 0:01:04]} 44. Ke1 {[%clk 0:01:12.4]} 44...
Bd2+ {[%clk 0:01:00.4]} 45. Kf1 {[%clk 0:01:10.2]} 45... e3 {[%clk 0:00:55.3]}
46. h5 {[%clk 0:00:55]} 46... e2+ {[%clk 0:00:55]} 47. Bxe2 {[%clk 0:00:52.2]}
47... Bxg5 {[%clk 0:00:55.9]} 48. Bd1 {[%clk 0:00:50.1]} 48... Kd2 {[%clk
0:00:53.3]} 49. Bf3 {[%clk 0:00:45]} 49... Kc2 {[%clk 0:00:53.2]} 50. b4 {[%clk
0:00:40.9]} 50... Bxa4 {[%clk 0:00:52.2]} 51. Bb7 {[%clk 0:00:33.6]} 51... a5
{[%clk 0:00:52.1]} 52. c5 {[%clk 0:00:33]} 52... Bb5+ {[%clk 0:00:42.2]} 53. Kf2
{[%clk 0:00:32.7]} 53... axb4 {[%clk 0:00:38.9]} 54. cxb6 {[%clk 0:00:30.3]}
54... b3 {[%clk 0:00:29.1]} 55. Be4+ {[%clk 0:00:29.5]} 55... Kd2 {[%clk
0:00:22.9]} 56. b7 {[%clk 0:00:25.9]} 56... Be3+ {[%clk 0:00:21.2]} 57. Kg2
{[%clk 0:00:20.1]} 57... Ba7 {[%clk 0:00:20.4]} 58. h6 {[%clk 0:00:19.5]} 58...
b2 {[%clk 0:00:13.8]} 59. h7 {[%clk 0:00:18.4]} 59... Bc6 {[%clk 0:00:13]} 60.
Bxc6 {[%clk 0:00:15.9]} 60... b1=Q {[%clk 0:00:13.3]} 61. h8=Q {[%clk
0:00:15.6]} 61... Qg1+ {[%clk 0:00:11.8]} 62. Kh3 {[%clk 0:00:15]} 62... Qf1+
{[%clk 0:00:10.4]} 63. Bg2 {[%clk 0:00:14.5]} 63... Qf5+ {[%clk 0:00:10.1]} 64.
Kh2 {[%clk 0:00:14.9]} 1-0

[Event "Late-Titled-Tuesday-Blitz-December-26-2023"]
[Site "Chess.com"]
[Date "2023.12.26"]
[Round "2"]
[White "le-castor-faineant"]
[Black "NoHeThTo"]
[Result "0-1"]
[WhiteElo "2314"]
[BlackElo "2669"]
[TimeControl "180+1"]
[EndTime "14:18:47 PST"]
[Termination "NoHeThTo won by checkmate"]

1. e4 {[%clk 0:03:00.9]} 1... c5 {[%clk 0:02:59.5]} 2. Nf3 {[%clk 0:03:00.3]}
2... g6 {[%clk 0:02:59.9]} 3. d4 {[%clk 0:03:00.1]} 3... cxd4 {[%clk 0:03:00.8]}
4. Nxd4 {[%clk 0:03:00.7]} 4... Bg7 {[%clk 0:03:00.9]} 5. Nc3 {[%clk 0:03:00.6]}
5... Nc6 {[%clk 0:03:01.1]} 6. Nb3 {[%clk 0:02:58.9]} 6... Nf6 {[%clk
0:03:00.3]} 7. Bd3 {[%clk 0:02:57.8]} 7... O-O {[%clk 0:03:00.4]} 8. O-O {[%clk
0:02:58.3]} 8... d6 {[%clk 0:03:00.8]} 9. Bg5 {[%clk 0:02:57.1]} 9... Be6 {[%clk
0:03:01.1]} 10. Qd2 {[%clk 0:02:56.9]} 10... Na5 {[%clk 0:03:00.3]} 11. Qc1
{[%clk 0:02:50.9]} 11... Rc8 {[%clk 0:02:58.4]} 12. Nd4 {[%clk 0:02:48.3]} 12...
Bc4 {[%clk 0:02:56.4]} 13. Rd1 {[%clk 0:02:32.8]} 13... Qb6 {[%clk 0:02:53.3]}
14. Be3 {[%clk 0:02:30.7]} 14... Ng4 {[%clk 0:02:49.7]} 15. Bxc4 {[%clk
0:02:13.5]} 15... Nxc4 {[%clk 0:02:46.3]} 16. Nd5 {[%clk 0:02:13.2]} 16... Qd8
{[%clk 0:02:41.3]} 17. Bg5 {[%clk 0:02:06.1]} 17... Nf6 {[%clk 0:02:13.7]} 18.
Bxf6 {[%clk 0:01:59.7]} 18... exf6 {[%clk 0:02:13.2]} 19. b3 {[%clk 0:01:54.4]}
19... Nb6 {[%clk 0:02:00]} 20. Nb5 {[%clk 0:01:47.3]} 20... f5 {[%clk
0:01:45.7]} 21. Rb1 {[%clk 0:01:40.7]} 21... Nxd5 {[%clk 0:01:39.5]} 22. Rxd5
{[%clk 0:01:35.5]} 22... fxe4 {[%clk 0:01:36.2]} 23. Nxd6 {[%clk 0:01:34.9]}
23... Rc6 {[%clk 0:01:34.8]} 24. Qd2 {[%clk 0:01:29.4]} 24... Qe7 {[%clk
0:01:34.6]} 25. c4 {[%clk 0:01:18.7]} 25... f5 {[%clk 0:01:28.5]} 26. Rd1 {[%clk
0:01:03.9]} 26... a6 {[%clk 0:01:20.1]} 27. a4 {[%clk 0:00:48.9]} 27... f4
{[%clk 0:00:53]} 28. Qe2 {[%clk 0:00:46]} 28... e3 {[%clk 0:00:50.1]} 29. f3
{[%clk 0:00:42.5]} 29... Rc7 {[%clk 0:00:41.7]} 30. Ne4 {[%clk 0:00:42.4]} 30...
Rf5 {[%clk 0:00:36.3]} 31. Rd8+ {[%clk 0:00:38.7]} 31... Rf8 {[%clk 0:00:34.8]}
32. R8d5 {[%clk 0:00:37.4]} 32... Qb4 {[%clk 0:00:33.6]} 33. Qd3 {[%clk
0:00:33.3]} 33... Re8 {[%clk 0:00:30.4]} 34. h3 {[%clk 0:00:29.4]} 34... Rce7
{[%clk 0:00:27.6]} 35. Rd7 {[%clk 0:00:25.8]} 35... Qa3 {[%clk 0:00:26.6]} 36.
Qd5+ {[%clk 0:00:20.4]} 36... Kh8 {[%clk 0:00:25.5]} 37. Ng5 {[%clk 0:00:20.4]}
37... e2 {[%clk 0:00:25.6]} 38. Re1 {[%clk 0:00:20]} 38... Qb4 {[%clk
0:00:24.3]} 39. Kf2 {[%clk 0:00:14]} 39... Qxe1+ {[%clk 0:00:22.8]} 40. Kxe1
{[%clk 0:00:13.7]} 40... Bc3+ {[%clk 0:00:23.4]} 41. Qd2 {[%clk 0:00:12.4]}
41... Bxd2+ {[%clk 0:00:23.6]} 42. Rxd2 {[%clk 0:00:13]} 42... Kg7 {[%clk
0:00:24]} 43. Ne4 {[%clk 0:00:12.9]} 43... b5 {[%clk 0:00:21.3]} 44. axb5 {[%clk
0:00:12.7]} 44... axb5 {[%clk 0:00:21.8]} 45. cxb5 {[%clk 0:00:10.6]} 45... Rb8
{[%clk 0:00:21.6]} 46. Kxe2 {[%clk 0:00:10.2]} 46... Rxb5 {[%clk 0:00:21.1]} 47.
Rd3 {[%clk 0:00:10.8]} 47... Reb7 {[%clk 0:00:19.3]} 48. Nd2 {[%clk 0:00:09.7]}
48... Re5+ {[%clk 0:00:18.8]} 49. Kf2 {[%clk 0:00:09.9]} 49... Ra7 {[%clk
0:00:16.8]} 50. g3 {[%clk 0:00:10.3]} 50... fxg3+ {[%clk 0:00:16.6]} 51. Kxg3
{[%clk 0:00:11.2]} 51... Ra2 {[%clk 0:00:16.9]} 52. Nc4 {[%clk 0:00:10.3]} 52...
Ree2 {[%clk 0:00:16.6]} 53. Ne3 {[%clk 0:00:09.2]} 53... Rab2 {[%clk 0:00:15.9]}
54. Nc4 {[%clk 0:00:06.6]} 54... Rg2+ {[%clk 0:00:14.8]} 55. Kf4 {[%clk
0:00:07.1]} 55... Rbe2 {[%clk 0:00:14.9]} 56. Rd7+ {[%clk 0:00:06.5]} 56... Kf6
{[%clk 0:00:14.3]} 57. Rxh7 {[%clk 0:00:06]} 57... g5# {[%clk 0:00:14.3]} 0-1

[Event "Late-Titled-Tuesday-Blitz-December-26-2023"]
[Site "Chess.com"]
[Date "2023.12.26"]
[Round "2"]
[White "slidingknight2775"]
[Black "jactorres"]
[Result "1-0"]
[WhiteElo "2703"]
[BlackElo "2507"]
[TimeControl "180+1"]
[EndTime "14:19:00 PST"]
[Termination "slidingknight2775 won by resignation"]

1. Nf3 {[%clk 0:03:00.9]} 1... Nf6 {[%clk 0:02:58.3]} 2. g3 {[%clk 0:03:01.4]}
2... b5 {[%clk 0:02:58.4]} 3. d3 {[%clk 0:03:01]} 3... Bb7 {[%clk 0:02:58.4]} 4.
e4 {[%clk 0:03:00.6]} 4... d6 {[%clk 0:02:57.1]} 5. Bg2 {[%clk 0:03:00.3]} 5...
Nbd7 {[%clk 0:02:57]} 6. O-O {[%clk 0:03:00.1]} 6... e5 {[%clk 0:02:57.1]} 7.
Re1 {[%clk 0:02:58.4]} 7... a6 {[%clk 0:02:57.3]} 8. c3 {[%clk 0:02:57.6]} 8...
g6 {[%clk 0:02:57.4]} 9. Nbd2 {[%clk 0:02:57.1]} 9... Bg7 {[%clk 0:02:57.4]} 10.
d4 {[%clk 0:02:57.1]} 10... O-O {[%clk 0:02:57.3]} 11. a4 {[%clk 0:02:56.1]}
11... Re8 {[%clk 0:02:56.5]} 12. d5 {[%clk 0:02:52.5]} 12... Nc5 {[%clk
0:02:51.3]} 13. axb5 {[%clk 0:02:46.8]} 13... axb5 {[%clk 0:02:48.1]} 14. Rxa8
{[%clk 0:02:45.4]} 14... Qxa8 {[%clk 0:02:49]} 15. Qc2 {[%clk 0:02:44.6]} 15...
c6 {[%clk 0:02:46]} 16. b4 {[%clk 0:02:40.5]} 16... Na4 {[%clk 0:02:44.4]} 17.
c4 {[%clk 0:02:25.8]} 17... cxd5 {[%clk 0:02:40.7]} 18. cxd5 {[%clk 0:02:24.1]}
18... Rc8 {[%clk 0:02:35.7]} 19. Qd3 {[%clk 0:02:19]} 19... Ba6 {[%clk
0:01:58.4]} 20. Nb1 {[%clk 0:02:00.5]} 20... Rc4 {[%clk 0:01:57.5]} 21. Bd2
{[%clk 0:01:53.7]} 21... Ng4 {[%clk 0:01:22.8]} 22. Na3 {[%clk 0:01:44.1]} 22...
Qa7 {[%clk 0:01:16.6]} 23. Rf1 {[%clk 0:01:38.4]} 23... Rc8 {[%clk 0:01:10.3]}
24. h3 {[%clk 0:01:33.6]} 24... Nf6 {[%clk 0:01:05]} 25. Rc1 {[%clk 0:01:16.6]}
25... Rxc1+ {[%clk 0:00:57.2]} 26. Bxc1 {[%clk 0:01:17.5]} 26... Qb7 {[%clk
0:00:55.9]} 27. Qc2 {[%clk 0:00:51.5]} 27... Nb6 {[%clk 0:00:48.8]} 28. Bf1
{[%clk 0:00:49.5]} 28... Na4 {[%clk 0:00:26.5]} 29. Bd3 {[%clk 0:00:26.6]} 29...
Ne8 {[%clk 0:00:25.9]} 30. Nd2 {[%clk 0:00:19.1]} 30... Nc7 {[%clk 0:00:26]} 31.
Nb3 {[%clk 0:00:17.4]} 31... f5 {[%clk 0:00:23.5]} 32. Na5 {[%clk 0:00:16.1]}
32... Qc8 {[%clk 0:00:20.6]} 33. exf5 {[%clk 0:00:13.7]} 33... Nxd5 {[%clk
0:00:19.7]} 34. Qxc8+ {[%clk 0:00:13.8]} 34... Bxc8 {[%clk 0:00:20.1]} 35. fxg6
{[%clk 0:00:14.4]} 35... Nxb4 {[%clk 0:00:19.6]} 36. gxh7+ {[%clk 0:00:14.3]}
36... Kh8 {[%clk 0:00:20.1]} 37. Bxb5 {[%clk 0:00:13.7]} 37... Nc3 {[%clk
0:00:19.9]} 38. Bd2 {[%clk 0:00:11.4]} 38... Nxb5 {[%clk 0:00:19.5]} 39. Nxb5
{[%clk 0:00:12.3]} 39... Nd5 {[%clk 0:00:17.9]} 40. Nxd6 {[%clk 0:00:09.3]}
40... Be6 {[%clk 0:00:18.5]} 41. Nc6 {[%clk 0:00:08.3]} 41... Kxh7 {[%clk
0:00:19.4]} 42. h4 {[%clk 0:00:06.9]} 42... Nf6 {[%clk 0:00:20.1]} 43. Nb4
{[%clk 0:00:06.4]} 43... e4 {[%clk 0:00:21]} 44. Bc3 {[%clk 0:00:06]} 44... Bg4
{[%clk 0:00:21.9]} 45. Bxf6 {[%clk 0:00:05.8]} 45... Bxf6 {[%clk 0:00:22.8]} 46.
Nxe4 {[%clk 0:00:06.7]} 46... Be7 {[%clk 0:00:23.3]} 47. Na2 {[%clk 0:00:05.1]}
47... Bf3 {[%clk 0:00:24.2]} 48. Nac3 {[%clk 0:00:05.4]} 48... Kg6 {[%clk
0:00:23.8]} 49. Nd2 {[%clk 0:00:05.5]} 49... Bc6 {[%clk 0:00:23.6]} 50. Nf1
{[%clk 0:00:05.9]} 50... Kf5 {[%clk 0:00:23.9]} 51. Ne3+ {[%clk 0:00:06]} 51...
Ke5 {[%clk 0:00:23.4]} 52. Ne2 {[%clk 0:00:06.5]} 52... Ke4 {[%clk 0:00:23.6]}
53. Nf4 {[%clk 0:00:06.2]} 53... Kf3 {[%clk 0:00:23.8]} 54. Nfg2 {[%clk
0:00:06.5]} 54... Bc5 {[%clk 0:00:24]} 55. h5 {[%clk 0:00:06.3]} 55... Be8
{[%clk 0:00:24.3]} 56. g4 {[%clk 0:00:06.2]} 56... Be7 {[%clk 0:00:21.7]} 57.
Nf5 {[%clk 0:00:05.3]} 57... Kxg4 {[%clk 0:00:20.7]} 58. Nxe7 {[%clk 0:00:05.4]}
58... Bxh5 {[%clk 0:00:20.5]} 59. Nd5 {[%clk 0:00:05.9]} 59... Kf3 {[%clk
0:00:20.5]} 60. Ne1+ {[%clk 0:00:05.5]} 60... Ke4 {[%clk 0:00:20.2]} 61. Nf6+
{[%clk 0:00:05.7]} 61... Kf5 {[%clk 0:00:17.7]} 62. Nxh5 {[%clk 0:00:06.6]}
62... Kg4 {[%clk 0:00:18.3]} 63. Ng3 {[%clk 0:00:06.2]} 63... Kh3 {[%clk
0:00:18.4]} 64. Kf1 {[%clk 0:00:05.9]} 64... Kg4 {[%clk 0:00:18.7]} 65. Kg2
{[%clk 0:00:06.4]} 65... Kf4 {[%clk 0:00:18.5]} 66. Nd3+ {[%clk 0:00:06.9]} 1-0

[Event "Late-Titled-Tuesday-Blitz-December-26-2023"]
[Site "Chess.com"]
[Date "2023.12.26"]
[Round "2"]
[White "BardArtem"]
[Black "AsaHoffmann"]
[Result "1/2-1/2"]
[WhiteElo "2669"]
[BlackElo "2372"]
[TimeControl "180+1"]
[EndTime "14:19:01 PST"]
[Termination "Game drawn by repetition"]

1. e4 {[%clk 0:02:56.2]} 1... d6 {[%clk 0:02:55.2]} 2. d4 {[%clk 0:02:56.2]}
2... Nf6 {[%clk 0:02:54.7]} 3. Nc3 {[%clk 0:02:56.8]} 3... c6 {[%clk 0:02:54.6]}
4. Nf3 {[%clk 0:02:57.2]} 4... Bg4 {[%clk 0:02:54]} 5. h3 {[%clk 0:02:56.3]}
5... Bh5 {[%clk 0:02:53.9]} 6. g4 {[%clk 0:02:43.4]} 6... Bg6 {[%clk 0:02:53.2]}
7. e5 {[%clk 0:02:44.3]} 7... dxe5 {[%clk 0:02:52.4]} 8. Nxe5 {[%clk 0:02:45.2]}
8... e6 {[%clk 0:02:51.4]} 9. h4 {[%clk 0:02:45.3]} 9... Bb4 {[%clk 0:02:49.6]}
10. Bg2 {[%clk 0:02:35.2]} 10... Be4 {[%clk 0:02:44.8]} 11. Bxe4 {[%clk
0:02:32.4]} 11... Nxe4 {[%clk 0:02:43.9]} 12. Qf3 {[%clk 0:02:33]} 12... Bxc3+
{[%clk 0:02:38.5]} 13. bxc3 {[%clk 0:02:33]} 13... Nd6 {[%clk 0:02:37.5]} 14. h5
{[%clk 0:02:30.1]} 14... h6 {[%clk 0:02:36.7]} 15. Bf4 {[%clk 0:02:29.3]} 15...
O-O {[%clk 0:02:34.7]} 16. Rg1 {[%clk 0:02:22.7]} 16... Nd7 {[%clk 0:02:32.9]}
17. g5 {[%clk 0:02:13.4]} 17... hxg5 {[%clk 0:02:20.4]} 18. Bxg5 {[%clk
0:02:05.8]} 18... f6 {[%clk 0:02:16.2]} 19. Nxd7 {[%clk 0:02:03.2]} 19... Qxd7
{[%clk 0:02:11.9]} 20. Bf4 {[%clk 0:01:59.7]} 20... Nf5 {[%clk 0:02:08.8]} 21.
O-O-O {[%clk 0:01:39.7]} 21... Qd5 {[%clk 0:02:08.5]} 22. Qg4 {[%clk 0:01:30.2]}
22... Rf7 {[%clk 0:01:58.1]} 23. Kb2 {[%clk 0:01:09.4]} 23... Qb5+ {[%clk
0:01:56.6]} 24. Ka1 {[%clk 0:01:09.5]} 24... Qa5 {[%clk 0:01:55.7]} 25. Rd3
{[%clk 0:01:09.3]} 25... Rd8 {[%clk 0:01:52.8]} 26. Qg6 {[%clk 0:00:42.8]} 26...
Kf8 {[%clk 0:01:50.4]} 27. h6 {[%clk 0:00:41]} 27... gxh6 {[%clk 0:01:46.6]} 28.
Re1 {[%clk 0:00:18.6]} 28... Ke7 {[%clk 0:01:44.6]} 29. Qg2 {[%clk 0:00:07.6]}
29... Rd5 {[%clk 0:01:40.9]} 30. Qe4 {[%clk 0:00:06]} 30... Ng7 {[%clk
0:01:22.3]} 31. Bxh6 {[%clk 0:00:06.4]} 31... f5 {[%clk 0:01:22.2]} 32. Qe3
{[%clk 0:00:03.4]} 32... f4 {[%clk 0:01:15.5]} 33. Qe4 {[%clk 0:00:03.4]} 33...
Rd6 {[%clk 0:01:07.6]} 34. Bxg7 {[%clk 0:00:02.1]} 34... Rxg7 {[%clk 0:01:07.5]}
35. Qxf4 {[%clk 0:00:02.3]} 35... Rf7 {[%clk 0:01:06.9]} 36. Qe3 {[%clk
0:00:02]} 36... Qf5 {[%clk 0:01:03.4]} 37. Re2 {[%clk 0:00:01.8]} 37... Qf4
{[%clk 0:01:01.6]} 38. Qxf4 {[%clk 0:00:02.2]} 38... Rxf4 {[%clk 0:01:01.2]} 39.
Rh3 {[%clk 0:00:03.1]} 39... Rd5 {[%clk 0:01:00.8]} 40. Rh6 {[%clk 0:00:03.2]}
40... Rf6 {[%clk 0:00:58.7]} 41. Rh7+ {[%clk 0:00:03.8]} 41... Rf7 {[%clk
0:00:59]} 42. Rh8 {[%clk 0:00:04.5]} 42... Rdf5 {[%clk 0:00:58.2]} 43. Rb8
{[%clk 0:00:04.7]} 43... Kd6 {[%clk 0:00:57.8]} 44. Rd8+ {[%clk 0:00:03.6]}
44... Kc7 {[%clk 0:00:57.4]} 45. Re8 {[%clk 0:00:04.1]} 45... Rxf2 {[%clk
0:00:56.5]} 46. R8xe6 {[%clk 0:00:04.3]} 46... b5 {[%clk 0:00:56.6]} 47. Kb2
{[%clk 0:00:03.1]} 47... Kb6 {[%clk 0:00:56.7]} 48. R2e5 {[%clk 0:00:02.5]}
48... a5 {[%clk 0:00:56.5]} 49. Rc5 {[%clk 0:00:02.9]} 49... Rc7 {[%clk
0:00:55.8]} 50. Rh5 {[%clk 0:00:03.1]} 50... b4 {[%clk 0:00:55.6]} 51. Rhh6
{[%clk 0:00:02.3]} 51... Rf3 {[%clk 0:00:54.5]} 52. cxb4 {[%clk 0:00:02.6]}
52... axb4 {[%clk 0:00:54.4]} 53. d5 {[%clk 0:00:03.3]} 53... Rc3 {[%clk
0:00:53.4]} 54. Rxc6+ {[%clk 0:00:02.6]} 54... R3xc6 {[%clk 0:00:52.6]} 55.
Rxc6+ {[%clk 0:00:03.5]} 55... Rxc6 {[%clk 0:00:52.8]} 56. dxc6 {[%clk
0:00:04.4]} 56... Kxc6 {[%clk 0:00:53.2]} 57. Kc1 {[%clk 0:00:03.7]} 57... Kc5
{[%clk 0:00:52.8]} 58. Kd1 {[%clk 0:00:03.8]} 58... Kd4 {[%clk 0:00:53]} 59. Kd2
{[%clk 0:00:03.8]} 59... Kc4 {[%clk 0:00:52.5]} 60. Kd1 {[%clk 0:00:04.4]} 60...
Kd4 {[%clk 0:00:52.6]} 61. Kc1 {[%clk 0:00:04.8]} 61... Kc4 {[%clk 0:00:52.9]}
62. Kb1 {[%clk 0:00:05.5]} 62... Kc3 {[%clk 0:00:52.8]} 63. Kc1 {[%clk
0:00:05.9]} 63... Kc4 {[%clk 0:00:52.9]} 64. Kb2 {[%clk 0:00:06.3]} 64... Kc5
{[%clk 0:00:52.7]} 65. Ka1 {[%clk 0:00:03.7]} 65... Kc4 {[%clk 0:00:52.7]} 66.
Kb2 {[%clk 0:00:04.2]} 66... Kc5 {[%clk 0:00:52.6]} 67. a3 {[%clk 0:00:02.7]}
67... bxa3+ {[%clk 0:00:52.1]} 68. Kb3 {[%clk 0:00:03.4]} 68... a2 {[%clk
0:00:51.1]} 69. Kxa2 {[%clk 0:00:04]} 69... Kc4 {[%clk 0:00:51]} 70. Kb2 {[%clk
0:00:04.8]} 70... Kb4 {[%clk 0:00:51.3]} 71. Kc1 {[%clk 0:00:05.6]} 71... Kc3
{[%clk 0:00:51.1]} 72. Kd1 {[%clk 0:00:06.3]} 72... Kc4 {[%clk 0:00:51]} 73. Kd2
{[%clk 0:00:07.2]} 73... Kd4 {[%clk 0:00:50.7]} 74. Kc1 {[%clk 0:00:08]} 74...
Kc3 {[%clk 0:00:50.6]} 75. Kb1 {[%clk 0:00:08.7]} 75... Kc4 {[%clk 0:00:50.7]}
76. Kb2 {[%clk 0:00:09.6]} 76... Kb4 {[%clk 0:00:50.9]} 77. c3+ {[%clk
0:00:10.5]} 77... Kc4 {[%clk 0:00:51.2]} 78. Kc2 {[%clk 0:00:11.4]} 78... Kc5
{[%clk 0:00:51.6]} 79. Kd3 {[%clk 0:00:12.3]} 79... Kd5 {[%clk 0:00:52]} 80. Ke3
{[%clk 0:00:13.2]} 80... Kc4 {[%clk 0:00:51.8]} 81. Kd2 {[%clk 0:00:14]} 81...
Kc5 {[%clk 0:00:52.1]} 82. Kd3 {[%clk 0:00:14.9]} 82... Kd5 {[%clk 0:00:52.5]}
83. Kc2 {[%clk 0:00:15.7]} 83... Kc4 {[%clk 0:00:52.7]} 84. Kb2 {[%clk
0:00:16.6]} 84... Kc5 {[%clk 0:00:52.9]} 85. Kb3 {[%clk 0:00:17.5]} 85... Kb5
{[%clk 0:00:53.2]} 86. c4+ {[%clk 0:00:18.2]} 86... Kc5 {[%clk 0:00:53.6]} 87.
Kc3 {[%clk 0:00:18.7]} 87... Kc6 {[%clk 0:00:54]} 88. Kb4 {[%clk 0:00:19.4]}
88... Kb6 {[%clk 0:00:54.2]} 89. Kc3 {[%clk 0:00:20.1]} 89... Kc5 {[%clk
0:00:54.4]} 90. Kd3 {[%clk 0:00:20.9]} 90... Kc6 {[%clk 0:00:54.4]} 91. Kd4
{[%clk 0:00:21.4]} 91... Kd6 {[%clk 0:00:54.8]} 92. Kd3 {[%clk 0:00:20.9]} 92...
Kc5 {[%clk 0:00:54.7]} 93. Kc3 {[%clk 0:00:21.8]} 93... Kc6 {[%clk 0:00:55.2]}
94. Kb4 {[%clk 0:00:22.7]} 94... Kb6 {[%clk 0:00:55.6]} 95. c5+ {[%clk
0:00:23.6]} 95... Kc6 {[%clk 0:00:56]} 96. Kc4 {[%clk 0:00:24.5]} 96... Kc7
{[%clk 0:00:56.4]} 97. Kd5 {[%clk 0:00:24.6]} 97... Kd7 {[%clk 0:00:56.6]} 98.
Kd4 {[%clk 0:00:25.4]} 98... Kc6 {[%clk 0:00:56.7]} 99. Kc4 {[%clk 0:00:25.9]}
99... Kc7 {[%clk 0:00:57.1]} 100. Kb5 {[%clk 0:00:26.4]} 100... Kb7 {[%clk
0:00:57.4]} 101. Kb4 {[%clk 0:00:25.9]} 101... Kc6 {[%clk 0:00:57.3]} 102. Kc4
{[%clk 0:00:26.8]} 1/2-1/2